Cogmind - Beta 16 *** ADVENTURER MODE // 2025.11.16 @ 15:26:05 Player: TheChosenOne Result: Destroyed by X-67 Chaingunner with Heavy Machine Gun Performance ------------- Evolutions (5) 2500 Regions Visited (5) 1000 Robots Destroyed (121) 605 Value Destroyed (4714) 4714 Prototype IDs (4) 80 Alien Tech Used (0) 0 Bonus (1066) 1066 TOTAL SCORE: 9965 Bonus ------- High Alert Combat Kills 201 Follower Combat Kills 89 Registered with UFD 300 Met Optimus in HQ 500 Friendly Fire -24 Cogmind --------- Core Integrity 0/1000 Matter 47/300 Energy 46/100 System Corruption 9% Temperature Cool (0) Movement Core (50) Location -5/Factory Parts ------- > --- POWER (2) -------- (None) > --- PROPULSION (4) --- (None) > --- UTILITY (8) ------ Advanced Weight Redist. System > --- WEAPON (3) ------- (None) > --- INVENTORY (5) ---- Neutrino Core Improved Coolant Injector Large Matter Pod (150) Wave Gun Enhanced Gauss Cannon Peak State ------------ > --- POWER ------------ Neutrino Core Micro Fission Core > --- PROPULSION ------- Flexi-carbon Leg Flexi-carbon Leg Multireflex Exoskeleton > --- UTILITY ---------- Advanced Heat Sink Improved Cooling System Large Storage Unit Advanced Signal Interpreter Improved Target Analyzer System Shield System Shield Dynamic Insulation System > --- WEAPON ----------- Advanced Plasma Cannon KE Penetrator KE Penetrator > --- INVENTORY -------- Neutrino Core Micro Fission Core Improved Titanium Leg Improved Titanium Leg Improved Coolant Injector Medium Storage Unit Large Matter Pod Seismic Detector Wave Gun Heavy Plasma Cannon Grenade Launcher Axe Ionic Axe [Rating: 87] Favorites ----------- Power Angular Momentum Engine Engine Angular Momentum Engine Power Core Micro Fission Core Reactor Antimatter Reactor Propulsion Aluminum Leg Leg Aluminum Leg Wheel Wheel Flight Unit Flight Unit Utility System Shield Device Advanced Sensor Array Storage Large Storage Unit Processor Advanced Signal Interpreter Hackware System Shield Protection Propulsion Shielding Weapon Heavy Plasma Cannon Energy Gun Plasma Rifle Energy Cannon Heavy Plasma Cannon Ballistic Gun Light Assault Rifle Ballistic Cannon Enhanced Gauss Cannon Launcher Grenade Launcher Impact Weapon Hammer Slashing Weapon Axe Build | -11 -10 -10 -9 -6 -5 ------- Run | Yrd Mat Sub Scr Fac Fac Slots Evolved 10 | . . . . 8 2 Power 1 | . . . . . 1 Propulsion 2 | . . . . 2 . Utility 6 | . . . . 5 1 Weapon 1 | . . . . 1 . Parts Attached 91 | 7 12 8 7 26 31 Power 16 | 1 2 2 1 2 8 Engine 9 | 1 2 2 1 2 1 Core 6 | . . . . . 6 Reactor 1 | . . . . . 1 Propulsion 23 | 2 6 2 3 4 6 Treads . | . . . . . . Leg 17 | 2 2 2 2 4 5 Wheel 4 | . 2 . 1 . 1 Hover . | . . . . . . Flight 2 | . 2 . . . . Utility 30 | 2 3 1 2 13 9 Device 16 | 1 2 . 1 8 4 Storage 4 | 1 1 . 1 1 . Processor 2 | . . . . . 2 Hackware 2 | . . . . 1 1 Protection 6 | . . 1 . 3 2 Artifact . | . . . . . . Weapon 22 | 2 1 3 1 7 8 Energy Gun 4 | 1 . 1 . 2 . Energy Cannon 3 | . . . . 2 1 Ballistic Gun 5 | 1 1 1 . . 2 Ballistic Cannon 6 | . . . 1 1 4 Launcher 2 | . . . . 1 1 Special Weapon . | . . . . . . Impact Weapon 1 | . . 1 . . . Slashing Weapon 1 | . . . . 1 . Piercing Weapon . | . . . . . . Special Melee Weapon . | . . . . . . Unidentified Prototypes 2 | . . . . 1 1 Parts Lost 31 | . . 5 . 2 24 Power 5 | . . 1 . . 4 Propulsion 10 | . . 1 . . 9 Utility 10 | . . 1 . 1 8 Weapon 6 | . . 2 . 1 3 Highest Loss Streak 12 | . . 5 . 1 12 To Critical Strikes 1 | . . . . . 1 Average Backups 12 | 2 8 9 11 13 13 Power 1 | . 1 1 1 1 1 Propulsion 1 | . . . 2 1 1 Utility 5 | . 4 4 5 5 5 Weapon 3 | . 1 2 2 4 4 Tool/Special . | . . . . . . Unused Backups 11 | . 1 . . 3 7 Power 3 | . . . . 2 1 Propulsion . | . . . . . . Utility 1 | . 1 . . . . Weapon 7 | . . . . 1 6 Tool/Special . | . . . . . . Average Slot Usage (%) 89 | . 95 96 87 90 87 Engine 9 | . 13 14 14 6 6 Leg 21 | . 22 11 27 20 17 Device 14 | . 14 5 4 29 13 Storage 9 | . 14 14 14 6 5 Processor 2 | . . . . . 6 Hackware 4 | . . . . 4 10 Protection 3 | . . 7 7 3 2 Energy Gun 3 | . 14 5 . 3 1 Energy Cannon 2 | . . . . 3 5 Ballistic Gun 5 | . 13 14 8 . 1 Ballistic Cannon 2 | . . . 2 4 2 Impact Weapon 2 | . . 7 7 1 . Slashing Weapon 1 | . . . . 3 3 Peak Build Rating 87 | 7 9 10 13 65 87 Average Rating 40 | 5 7 8 8 54 75 On Entrance 16 | . 7 8 8 11 63 Avg Prop Armor Cover (%) 11 | . . . 16 18 3 Naked Turns 77 | . . . . . 77 Heaviest Build 79 | 14 19 19 31 65 79 Greatest Support 82 | 20 20 20 29 82 80 Greatest Overweight (x) 18 | . 5 1 1 2 18 Average Overweight (x) . | . . . . . . Largest Inventory Capacity 15 | 8 10 10 15 15 15 Average Capacity 13 | 7 9 10 12 15 14 Most Carried 15 | 4 10 10 15 15 15 Average Carried 12 | 2 8 9 12 14 13 Final Capacity 15 | 8 10 10 15 15 5 Final Carried 15 | 4 10 10 15 14 5 Scrap Suit Usage (%) 23 | . . . . 6 65 Parts Cannibalized 6 | . . . . 1 5 Class Distribution -------------------- 36% | Mutant 35% | Hacker-Mutant 7% | Scavenger-Mutant 7% | Derelict-Mutant 7% | Hacker-Gunner 3% | Hacker-Tank Dominant Class ---------------- Mutant | -10/Materials Mutant | -10/Subcaves Mutant | -9/Scraptown Hacker-Mutant | -6/Factory Hacker-Mutant | -5/Factory Resources | -11 -10 -10 -9 -6 -5 ----------- Run | Yrd Mat Sub Scr Fac Fac Matter Collected 3235 | 275 362 102 80 1000 1416 Remotely . | . . . . . . Salvage Created 4546 | 118 398 46 . 1161 2823 Parts 233 | 7 33 3 . 57 133 Haulers Intercepted 1 | . . . . . 1 Recyclers Shooed 5 | . . . . 5 . Parts Field Recycled . | . . . . . . Retrieved Matter . | . . . . . . Parts Self-Destructed 4 | . . 4 . . . Prevented . | . . . . . . Parts Restored . | . . . . . . Kills | -11 -10 -10 -9 -6 -5 ------- Run | Yrd Mat Sub Scr Fac Fac Combat Hostiles Destroyed 94 | . 14 1 . 30 49 Melee 3 | . . . . 2 1 Guns 33 | . 14 1 . 2 16 Cannons 46 | . . . . 23 23 AOE 8 | . . . . 3 5 Classes Destroyed 16 | 2 5 1 . 4 4 Worker 7 | . 1 . . . 6 Builder 10 | . 1 . . 3 6 Tunneler 3 | 1 1 . . . 1 Hauler 1 | . . . . . 1 Recycler 3 | 1 . . . 1 1 Watcher 3 | . 1 . . 2 . Swarmer 25 | . 9 . . 10 6 Grunt 32 | . 5 . . 7 20 Brawler 1 | . . . . . 1 Duelist 3 | . . . . 3 . Protector 1 | . . . . . 1 Sentry 8 | . . . . 4 4 Specialist 1 | . . . . . 1 Hunter 9 | . . . . 4 5 Programmer 13 | . . . . 2 11 Subdweller 1 | . . 1 . . . Best Kill Streak 13 | 1 4 1 . 5 13 Combat Bots Only 10 | . 3 1 . 4 10 Max Kills in Single Turn 5 | 1 2 1 . 2 5 Gunslinging 1 | . 1 . . . . Exploded 3 | . . . . 1 3 Melee 1 | . . . . 1 1 Uniques/NPCs Destroyed . | . . . . . . Combat | -11 -10 -10 -9 -6 -5 -------- Run | Yrd Mat Sub Scr Fac Fac Hostile Shots Fired 812 | . 66 17 . 262 467 Missed 248 | . 13 3 . 97 135 Hits 564 | . 53 14 . 165 332 Projectile 564 | . 53 14 . 165 332 AOE 2 | . . . . . 2 Critical Strikes 13 | . . . . 3 10 Part Disruptions 1 | . . . . . 1 Actively Blocked 1 | . . . . . 1 Damage Taken 7203 | . 384 324 . 1591 4904 Core 1454 | . 100 102 . 244 1008 Absorbed by Shields . | . . . . . . Redirected to Shielding 12 | . . 12 . . . Ignored by Resistances 2155 | . 122 89 . 484 1460 Regen/Repaired (Parts) 50 | . . . . 6 44 Core Remaining (%) 63 | 100 . . 19 71 . Volleys Fired 228 | 5 44 13 . 65 101 Largest 3 | 2 2 2 . 3 3 Hottest 255 | 70 70 70 . 209 255 Shots Fired 524 | 10 88 18 . 135 273 Gun 263 | 10 88 18 . 32 115 Cannon 249 | . . . . 95 154 Launcher 12 | . . . . 8 4 Special . | . . . . . . Kinetic 319 | 5 44 15 . 70 185 Thermal 190 | 5 44 3 . 54 84 Explosive 12 | . . . . 8 4 Electromagnetic 3 | . . . . 3 . Robot Hit Streak 31 | 8 31 16 . 20 20 Robot Miss Streak 4 | . 2 1 . 4 4 Penetration Max 1 | . . . . . 1 Secondary Targets 4 | . 3 1 . . . Max Gunslinging Chain 1 | . 1 1 . . . Shots Hit Robots 379 | 8 67 17 . 106 181 Core Hits 277 | 4 29 3 . 114 127 Critical Kills 10 | . . . . 1 9 Critical Parts Destroyed 10 | . . . . . 10 Critical Strikes 44 | 1 4 . . 4 35 Burn 10 | 1 4 . . 2 3 Meltdown 5 | . . . . 1 4 Destroy 15 | . . . . . 15 Blast 13 | . . . . . 13 Sever 1 | . . . . 1 . Melee Attacks 54 | . . 1 . 34 19 Impact 6 | . . 1 . 5 . Slashing 48 | . . . . 29 19 Piercing . | . . . . . . Sneak Attacks 2 | . . . . 1 1 Combat Hostiles . | . . . . . . Follow-up Attacks . | . . . . . . Damage Inflicted 11890 | 83 732 40 . 3797 7238 Guns 3941 | 83 732 40 . 508 2578 Cannons 5569 | . . . . 2146 3423 Explosions 1756 | . . . . 698 1058 Melee 593 | . . . . 445 148 Ramming 31 | . . . . . 31 Kinetic 6081 | 22 244 14 . 1571 4230 Thermal 3620 | 61 488 26 . 1045 2000 Explosive 1039 | . . . . 698 341 Electromagnetic 526 | . . . . 38 488 Impact . | . . . . . . Slashing 593 | . . . . 445 148 Piercing . | . . . . . . Highest Corruption 9 | . . . . 1 9 Average Corruption 3 | . . . . 1 4 Corruption Purged . | . . . . . . Corruption Blocked . | . . . . . . Effects 54 | . . . . 10 44 Message Errors 7 | . . . . 1 6 Matter Fused 15 | . . . . 3 12 Heat Flow Errors 7 | . . . . 1 6 Energy Discharges 4 | . . . . . 4 Parts Fused 2 | . . . . 1 1 Data Loss (minor) 10 | . . . . 3 7 Data Loss (major) 3 | . . . . 1 2 Misfires 2 | . . . . . 2 Alerts 1 | . . . . . 1 Weapon Failures 3 | . . . . . 3 Overload Shots . | . . . . . . Overflow Damage 124 | . . . . 66 58 Projectiles 63 | . . . . 6 57 Explosions 11 | . . . . 10 1 Melee 50 | . . . . 50 . Knockbacks 57 | . . . . 38 19 Impact . | . . . . . . Kinetic 53 | . . . . 37 16 Secondary 4 | . . . . 1 3 Self-Inflicted Damage 46 | . . . . . 46 Shots 3 | . . . . . 3 Rammed . | . . . . . . Targets Rammed 1 | . . . . . 1 Kicked 1 | . . . . . 1 Crushed . | . . . . . . Highest Temperature 534 | 50 236 4 . 153 534 Average Temperature 101 | 24 68 4 . 55 142 Received Heat Transfer 2053 | . 138 135 . 433 1347 Effects 7 | . . . . . 7 Shutdowns 2 | . . . . . 2 Energy Bleed 2 | . . . . . 2 Damage (major) 3 | . . . . . 3 Siege Activations . | . . . . . . Martial Activations 1 | . . . . 1 . Total Turns 27 | . . . . 23 4 Longest Duration 27 | . . . . 23 27 Shielding Activations . | . . . . . . Robots Disrupted . | . . . . . . Combat Hostiles . | . . . . . . Robots Corrupted . | . . . . . . Combat Hostiles . | . . . . . . Parts Fried 1 | . . . . . 1 Impact Corruptions . | . . . . . . Robots Melted 5 | . . . . 1 4 Combat Hostiles 4 | . . . . . 4 Parts Melted 23 | 1 7 . . 2 13 Heat Transferred 7548 | 259 1665 74 . 2150 3400 Parts Sabotaged . | . . . . . . Parts Stolen . | . . . . . . Parts Stripped . | . . . . . . Power Chain Reactions 2 | . . . . . 2 Alert | -11 -10 -10 -9 -6 -5 ------- Run | Yrd Mat Sub Scr Fac Fac Maximum Alert Level 2 | . . . . 1 2 Low Security (%) 76 | 100 100 . . 67 71 Level 1 13 | . . . . 32 6 Level 2 10 | . . . . . 22 Level 3 . | . . . . . . Level 4 . | . . . . . . Level 5 . | . . . . . . High Security . | . . . . . . Max Security . | . . . . . . Peak Influence 573 | 5 120 . . 354 573 Initial 98 | . . . . . 98 Average 113 | . 35 . . 123 145 Influence Increases 3341 | 10 417 . . 1159 1755 Destroy 0b10 Robot/C 1880 | . 280 . . 640 960 Destroy 0b10 Robot/NC 140 | 10 20 . . 30 80 Destroy Leader 408 | . 52 . . 164 192 Allied During Kill 11 | . . . . 11 . Successful Hack 159 | . 35 . . 74 50 Select Force Hacks 30 | . . . . . 30 Disable Machine 108 | . . . . 18 90 Destroy Structure 230 | . . . . 72 158 Partial Spotted 30 | . 30 . . . . Lose Combat Pursuer 345 | . . . . 150 195 Influence Decreases 2778 | 10 377 40 . 924 1427 Entered New Map 159 | . . 22 . . 137 Time Decay 2327 | 10 377 18 . 844 1078 Lost Part 232 | . . . . 20 212 Lost Ally 60 | . . . . 60 . Squads Dispatched 29 | . 3 . . 10 16 Investigation 10 | . 3 . . 2 5 Extermination 8 | . . . . 3 5 Reinforcement 10 | . . . . 5 5 Assault 1 | . . . . . 1 Garrison . | . . . . . . Intercept . | . . . . . . Searches Triggered . | . . . . . . Construction Impeded 6 | . . . . 3 3 Haulers Reinforced 1 | . . . . . 1 Active Scanning Responses . | . . . . . . Cargo Convoy Interrupts 1 | . . . . . 1 Stealth | -11 -10 -10 -9 -6 -5 --------- Run | Yrd Mat Sub Scr Fac Fac Distress Signals 4 | . . . . 2 2 Communications Jammed . | . . . . . . Distress Signals . | . . . . . . Times Spotted 150 | . 19 4 . 49 78 Peak Tracking Total 10 | . 3 2 . 5 10 Tactical Retreats 17 | . . . . 8 9 Traps | -11 -10 -10 -9 -6 -5 ------- Run | Yrd Mat Sub Scr Fac Fac Traps Triggered 3 | . 2 . . . 1 Indirectly . | . . . . . . Trap Hack Attempts . | . . . . . . Triggered . | . . . . . . Disarmed . | . . . . . . Reprogrammed . | . . . . . . Reused . | . . . . . . Traps Extracted . | . . . . . . Installed . | . . . . . . Triggered . | . . . . . . Machines | -11 -10 -10 -9 -6 -5 ---------- Run | Yrd Mat Sub Scr Fac Fac Machines Disabled 12 | . . . . 2 10 Max in Single Turn 2 | . . . . 1 2 Garrison Access 1 | . . . . 1 . Machines Repaired . | . . . . . . Machines Dismantled . | . . . . . . Machines Sabotaged . | . . . . . . Overloaded Fab Kills . | . . . . . . Hacking | -11 -10 -10 -9 -6 -5 --------- Run | Yrd Mat Sub Scr Fac Fac Machines Accessed 37 | . 8 1 5 12 11 Terminals 14 | . 6 . . 5 3 Fabricators 4 | . . . . 3 1 Repair Stations 2 | . . . . 1 1 Recycling Units 6 | . 2 . . 1 3 Scanalyzers 4 | . . . . 1 3 Garrison Access 1 | . . . . 1 . Total Hacks 118 | . 18 4 35 24 37 Successful 72 | . 8 4 35 9 16 Failed 45 | . 10 . . 15 20 Catastrophic 10 | . 1 . . 4 5 Database Lockouts 1 | . . . . . 1 Manual 25 | . 13 . . 5 7 Terminals 32 | . 14 . . 9 9 Fabricators 13 | . . . . 7 6 Repair Stations 9 | . . . . 2 7 Recycling Units 10 | . 4 . . 2 4 Scanalyzers 14 | . . . . 3 11 Garrison Access 1 | . . . . 1 . Terminal Hacks 52 | . 7 4 35 3 3 Record 41 | . . 4 35 . 2 Robot Schematic 1 | . 1 . . . . Robot Analysis 3 | . 3 . . . . Emergency Access Points 2 | . 1 . . 1 . Recycling Unit Index 1 | . 1 . . . . Zone Layout 4 | . 1 . . 2 1 Fabricator Hacks 4 | . . . . 3 1 Load Schematic 2 | . . . . 1 1 Build 2 | . . . . 2 . Repair Station Hacks 1 | . . . . . 1 Scan Component 1 | . . . . . 1 Recycling Unit Hacks 1 | . 1 . . . . Retrieve Components 1 | . 1 . . . . Scanalyzer 9 | . . . . 1 8 Insert Component 1 | . . . . . 1 Analyze 1 | . . . . . 1 Retrieve Study 7 | . . . . 1 6 Garrison Access Hacks 1 | . . . . 1 . Seal Access 1 | . . . . 1 . Unauthorized Hacks 4 | . . . . 1 3 Terminals . | . . . . . . Fabricators . | . . . . . . Repair Stations . | . . . . . . Recycling Units 4 | . . . . 1 3 Tunnel 1 | . . . . . 1 Fedlink 3 | . . . . 1 2 Scanalyzers . | . . . . . . Garrison Access . | . . . . . . Data Cores Recovered . | . . . . . . Used . | . . . . . . Hacking Detections 24 | . 7 . . 11 6 Full Trace Events 7 | . 4 . . 1 2 Feedback Events . | . . . . . . Feedback Blocked . | . . . . . . Robot Schematics Acquired 1 | . 1 . . . . Robots Built 6 | . . . . 6 . Authchips . | . . . . . . Time 156 | . . . . 156 . Total Robot Build Rating 12 | . . . . 12 . Part Schematics Acquired 1 | . . . . . 1 Parts Built . | . . . . . . Authchips . | . . . . . . Time . | . . . . . . Total Part Build Rating . | . . . . . . Part Studies Acquired 7 | . . . . 1 6 Parts Repaired . | . . . . . . Time . | . . . . . . Parts Recycled . | . . . . . . Recycled Matter . | . . . . . . Retrieved Matter . | . . . . . . Retrieved Components 3 | . 3 . . . . Parts Scanalyzed 1 | . . . . . 1 Part Schematics Acquired 1 | . . . . . 1 Parts Damaged 1 | . . . . . 1 Bothacking | -11 -10 -10 -9 -6 -5 ------------ Run | Yrd Mat Sub Scr Fac Fac Used RIF Installer . | . . . . . . Robots Hacked . | . . . . . . Non-combat . | . . . . . . Combat . | . . . . . . Robot Hacks Applied . | . . . . . . Relay Couplers Released . | . . . . . . Fabnet Peak Effective % . | . . . . . . Robots Rewired . | . . . . . . Allies Hacked . | . . . . . . Hacks Repelled . | . . . . . . Allies | -11 -10 -10 -9 -6 -5 -------- Run | Yrd Mat Sub Scr Fac Fac Total Allies 6 | . . . . 6 . Largest Group 3 | . . . . 3 . Highest-Rated Group 75 | . . . . 75 . Highest-Rated Ally 25 | . . . . 25 . Total Orders 5 | . . . . 3 2 STAY 1 | . . . . 1 . ROAM 1 | . . . . . 1 FOLLOW 2 | . . . . 2 . EXPLORE 1 | . . . . . 1 Ally Attacks 24 | . . . . 24 . Total Damage 272 | . . . . 272 . Kills 3 | . . . . 3 . Allies Corrupted . | . . . . . . Allies Melted . | . . . . . . Intel | -11 -10 -10 -9 -6 -5 ------- Run | Yrd Mat Sub Scr Fac Fac Active Infowar (turns) 5705 | 87 1197 106 . 2054 2261 Optics 163 | . . . . 163 . Sensors 3506 | . . . . 1793 1713 Terrain 359 | . 266 93 . . . Seismic 2642 | 87 931 13 . 1063 548 Robot Analysis Total 3 | . 3 . . . . Derelict Logs Recovered 1 | . . . 1 . . Drone Launches 2 | . . . . . 2 Drone Recoveries . | . . . . . . Exploration | -11 -10 -10 -9 -6 -5 ------------- Run | Yrd Mat Sub Scr Fac Fac Turns Passed 9401 | 207 1201 251 2513 2139 3090 Spaces Moved 6411 | 152 803 205 1792 1408 2051 Core 184 | 4 2 . . . 178 Treads . | . . . . . . Legs 5862 | 148 729 84 1789 1241 1871 Wheels 364 | . 71 121 3 167 2 Hover . | . . . . . . Flight 1 | . 1 . . . . Fastest Speed 50 | 50 80 80 115 115 50 Average Speed 125 | 118 126 100 138 122 119 Slowest Speed 950 | 120 300 190 190 246 950 Overloaded Moves 6 | . . . . 6 . Propulsion Burnouts . | . . . . . . Robots Hopped . | . . . . . . Potential Cave-ins 3 | . . . . . 3 Cave-ins Triggered . | . . . . . . Exploration Rate (%) 43 | 10 86 15 87 25 37 Regions Visited 5 Branch Regions 2 Pre-discovered Areas 3 | . . . 1 . 2 Known Exits Taken . | . . . . . . Unknown Exits Taken 5 | 1 1 1 1 1 . Scrap Searched 7 | . . . 7 . . Spaces Dug 34 | . . . . 18 16 Terrain Destroyed 142 | . . . . 63 79 Melee 34 | . . . . 18 16 Projectile 59 | . . . . 6 53 AOE 49 | . . . . 39 10 Terrain Rammed . | . . . . . . Walls Destroyed . | . . . . . . Machines Disabled . | . . . . . . Actions | -11 -10 -10 -9 -6 -5 --------- Run | Yrd Mat Sub Scr Fac Fac Total 7191 | 167 909 232 1822 1639 2422 Wait 226 | . 23 . . 57 146 Move 6406 | 151 802 204 1791 1407 2051 Hop . | . . . . . . Pick Up 54 | 4 9 3 4 17 17 Fast Attach 36 | 7 9 3 3 4 10 Attach 35 | . 1 3 3 12 16 Detach 8 | . . . 5 1 2 Swap 81 | . 9 3 6 24 39 Drop 58 | . 12 2 6 18 20 Fire 228 | 5 44 13 . 65 101 Melee 54 | . . 1 . 34 19 Ram . | . . . . . . Kick 1 | . . . . . 1 Crush . | . . . . . . Escape Stasis . | . . . . . . Rewire 4 | . . . 4 . . Trap . | . . . . . . Miscellaneous . | . . . . . . Route ------- -11/Scrapyard -10/Materials (discovered 5 exits: [*Mat x3] / [*Min] / *Sub) -10/Subcaves -9/Scraptown (discovered 2 exits: *Fac x2) -6/Factory -5/Factory History --------- Turn | Location | Event 3 | -11/Scrapyard | Discovered new exit (range 15) 208 | -11/Scrapyard | Entered Materials 209 | -10/Materials | Met a group of wandering Federalists 305 | -10/Materials | Build established: Mutant 311 | -10/Materials | Discovered new exit (range 8) 370 | -10/Materials | Discovered new exit (range 3) 602 | -10/Materials | Discovered new exit (range 13) 767 | -10/Materials | Build established: Scavenger-Mutant 900 | -10/Materials | Discovered new exit (range 15) 982 | -10/Materials | Discovered new exit (range 14) 1235 | -10/Materials | Build established: Mutant 1409 | -10/Materials | Entered Subcaves 1410 | -10/Subcaves | Continued accompanying wandering Federalists (6) 1410 | -10/Subcaves | Approached by a straggling Scientist 1520 | -10/Subcaves | Core integrity fell below 50% 1532 | -10/Subcaves | Core integrity fell below 20% 1558 | -10/Subcaves | Lost 5 parts (1p1n1u2w) 1602 | -10/Subcaves | Wandering Federalist uncovered a shortcut to Scraptown 1615 | -10/Subcaves | Visited Clippyterm 1619 | -10/Subcaves | Learned Factory trap positions 1624 | -10/Subcaves | Lost 6 allies 1660 | -10/Subcaves | Entered Scraptown 2072 | -9/Scraptown | Scanned Subdweller tech in exchange for log data 2076 | -9/Scraptown | Learned Research stockpile data 2094 | -9/Scraptown | Discovered new exit (range 5) 2164 | -9/Scraptown | Heard Great Nut preacher, LISTEN AND RECITE! 2467 | -9/Scraptown | Visited UFD Registry 2484 | -9/Scraptown | Visited Shadow of the Wyrm 2527 | -9/Scraptown | Visited Comm Corps 2605 | -9/Scraptown | Visited Bundlers 2675 | -9/Scraptown | Visited Spacefarers 2759 | -9/Scraptown | Visited Junk Repository 2783 | -9/Scraptown | Visited Observation Area 2857 | -9/Scraptown | Registered with UFD as "Hardeater" 2932 | -9/Scraptown | Visited Scrap Suit Storage 2961 | -9/Scraptown | Found Scrap Suit 3080 | -9/Scraptown | Visited Junk Repository 3132 | -9/Scraptown | Visited Scrapoid Research Area 3232 | -9/Scraptown | Discovered new exit (range 5) 3394 | -9/Scraptown | Visited DA-N13 Charitable Foundation 3415 | -9/Scraptown | Found DCF Scrap (26 items) 3848 | -9/Scraptown | Visited Curators Association 3999 | -9/Scraptown | Build established: Derelict-Mutant 4055 | -9/Scraptown | Met Optimus 4055 | -9/Scraptown | Accepted into 0bPrime 4173 | -9/Scraptown | Entered Factory 4173 | -6/Factory | Evolved 8 slots: Propulsion x2, Utility x5, Weapon x1 4174 | -6/Factory | Loaded intel: 100 trap records 4370 | -6/Factory | Fabricated C-17 Slicer? 4697 | -6/Factory | Lost 3 allies 5096 | -6/Factory | Build established: Hacker-Mutant 5248 | -6/Factory | Fabricated G-34 Mercenary? 5410 | -6/Factory | Loaded intel: 8 recycling unit locations 5961 | -6/Factory | Discovered new exit (range 13) 6088 | -6/Factory | Spotted B-75 Beast 6312 | -6/Factory | Entered another Factory area 6312 | -5/Factory | Evolved 2 slots: Power x1, Utility x1 7615 | -5/Factory | Loaded intel: 8 recycling unit locations 7615 | -5/Factory | Learned location of Protoforge (-3) 7688 | -5/Factory | Central database locked down 8372 | -5/Factory | Destroyed 10 combat bots 8622 | -5/Factory | Cargo convoy interrupted 8682 | -5/Factory | Destroyed 8 combat bots 8712 | -5/Factory | First assault squad dispatched 8860 | -5/Factory | Build established: Hacker-Gunner 9301 | -5/Factory | Destroyed 7 combat bots 9302 | -5/Factory | Core integrity fell below 50% 9313 | -5/Factory | Released all parts (6) 9319 | -5/Factory | Core integrity fell below 20% 9344 | -5/Factory | Lost 12 parts (2p5n2u3w) 9402 | -5/Factory | Destroyed by X-67 Chaingunner with Heavy Machine Gun Last Messages --------------- 09317_ K-01 Serf collects debris. 09318_ Penetrated by Slug. 09319_ U-05 Engineer builds a Door. 09321_ K-01 Serf collects debris. 09323_ System corrupted: Matter fused (-7). 09332_ Connecting with Terminal... 09332_ ALERT: Suspicious activity at Terminal F016. Dispatching Investigation squad. 09347_ Connecting with Recycling Unit... >>Force(Tunnel) DISCOVERED[-6/Hub_04(d)] 09347_ ALERT: Suspicious activity at Recycling Unit F003. Dispatching Investigation squad. 09351_ System corrupted: Heat flow error (+200). 09358_ Drone sends a signal. 09377_ ALERT: Potential suspicious activity detected, Programmers report to Factory Zone 1X. 09387_ System corrupted: Component data lost. 09390_ Acquired Adv. Weight Redist. System. Map ----- +----------------------------------------------------+ | ?????????????????????????????????????????????????? | | ?????????????????????????????????????????????????? | | ?????????????????????????????????????????????????? | | ?????????????????????????????????????????????????? | | ?????????????????????????????????????????????????? | | ?????????????????????????????????????????????????? | | ?????????????????????????????????????????????????? | | ?????????????????????????????????????????????????? | | ?????????????????????????????????????????????????? | | ?????????????????????????????????????????????????? | | ?????????????????????????????????????????????????? | | ?????????? ??????????????????????????????????????? | | ??????????? ????????????????????????????????????? | | ?????????####+##??????????????##########?????????? | | ##??????? ?????????????# #?????????? | | ?????? ###+######### ! #?????????? | | ??????? %% # #?????????? | | ???????? %= # #?????????? | | ????????? T # #?????????? | | ??????? + #?????????? | | ??????? # #?????????? | | ??????? ####### # = #?????????? | | #???????# ????????# # #?????????? | | #????#################### ##/############????? | | #????# # ## #????? | | #????# #@ ## %! ! #????? | | ###### """"""""" + ## #????? | | + + # ## ###### | | ###### """"""""" # k# " | | #????# # k## " | | #????# """"""""" # ##% # | | #????# # # " | | #????#################### # + | | #??????????############## #" %#% | | #??????????# # ## "= | | #??????????# # ## # | | #??????????# # ############+"#####+ | | #??????????# # ^ | | #??????????# """ !!! # ^ | | #??????????# """ !!! + A """ """ """ """ | | #??????????# """ !!! # """ """ """ """ | | ##########?# # """ """ """ """ | | #?# """ """ ##### ^ | | = "" #?# """ """ #???# """ """ """ """ | | ]] """ #?# """ """ #???# """ """ """ """ | | =]! S" ### #???# """ """ """ """ | | []%= ####################+## | | =!= """ #????????# # | | | ** #????????# # | | !%= ! #????????# """"" # #####+####### | +----------------------------------------------------+ Best States ------------- Heat Dissipation 67 Coolant Potential 80 Energy Generation 34 Energy Capacity 375 Matter Stores 450 Matter Capacity 450 Sight Range 21 Robot Scan Range 16 Terrain Scan Range 16 Terrain Scan Density 10 Additional Mass Support 9 EM Shielding 2 Armor Coverage 300 Resistance: KI 20 Resistance: TH 20 Resistance: EX 20 Resistance: EM 35 Resistance: I 20 Resistance: S 20 Resistance: P 20 Propulsion Shielding 33 Evasion (%) 55 Target Analysis 6 Matter Filtering 30 Offensive Hacking 10 Defensive Hacking 20 Item Schematics ----------------- Enh. Gauss Cannon | -5/Factory | Scanalyzed Robot Schematics ------------------ G-34 Mercenary | -10/Materials | Hacked Fabricated ------------ C-17 Slicer | x3 | -6/Factory | Preloaded G-34 Mercenary | x3 | -6/Factory Repaired ---------- Nothing Studied --------- Angular Momentum Engine | -6/Factory | Hacked Hvy. Plasma Cannon | -5/Factory | Hacked Imp. Titanium Leg | -5/Factory | Hacked Lgt. Angular Momentum Engine | -5/Factory | Hacked Plasma Rifle | -5/Factory | Hacked KE Penetrator | -5/Factory | Hacked Axe | -5/Factory | Hacked Alien Tech Used ----------------- None Achievements -------------- Fancy Inventory Part-time Excavator Significant Disruption Strength In Numbers Challenges ------------ None Game ------ Seed GuidedLargeWeb Manual? 0 Play Time 02:14:06 Cumulative 41.0 hours Start 2025.11.15 @ 22:11:00 End 2025.11.16 @ 15:26:05 Sessions 3 Manual Loads 0 Difficulty Adventurer Special Mode None Game No. 18 Rogue 3 Adventurer 15 Explorer 0 Win Type - Total 0 Types 0/0/0/0/0/0/0/0/0/0 Lore% 20 Gallery% 29 Achievement% 21 Wizard Run 0 Options --------- Layout 1 ASCII 0 Keyboard 0 Movement Arrows Keybinds 0 Fullscreen 2 Font 36/Smallcaps Map View 50x35 Zoom Use 3% Tactical HUD 1 Map Filters NONE Filters NONE Steam 1 RUN: ec997c82-25d9-4c19-844f-9d47d0a882e9